Cogmind - Beta 11.1 @@@ ROGUE MODE // 2022.06.13 @ 14:48:24 Player: Delirus Result: Self-destructed Performance ------------- Evolutions (2) 1000 Regions Visited (6) 1200 Robots Destroyed (13) 65 Value Destroyed (333) 333 Prototype IDs (1) 20 Alien Tech Used (0) 0 Bonus (300) 300 TOTAL SCORE: 2918 Bonus ------- Aligned with FarCom 300 Cogmind --------- Core Integrity 452/550 Matter 171/300 Energy 275/275 System Corruption 0% Temperature Cool (0) Movement Hovering (52) Location -8/Storage Parts ------- > --- POWER (1) -------- Deuterium Engine > --- PROPULSION (3) --- Improved Hover Unit Improved Hover Unit Improved Hover Unit > --- UTILITY (5) ------ Improved Sensor Array Hacking Suite PSU Rigger > --- WEAPON (2) ------- Flak Cannon > --- INVENTORY (5) ---- VTOL Module Cesium-ion Thruster Surge Thruster Improved VTOL Module Rocket Launcher Peak State ------------ > --- POWER ------------ Deuterium Engine > --- PROPULSION ------- Flight Unit Cesium-ion Thruster Surge Thruster > --- UTILITY ---------- Improved Sensor Array Hacking Suite PSU Rigger > --- WEAPON ----------- Heavy EM Pulse Gun Flak Cannon > --- INVENTORY -------- Improved Hover Unit Improved Hover Unit Improved Hover Unit Cooling System [Rating: 29] Favorites ----------- Power Light Ion Engine Engine Light Ion Engine Propulsion Improved Hover Unit Treads Light Treads Leg Aluminum Leg Wheel Compact Wheel Hover Unit Improved Hover Unit Flight Unit Flight Unit Utility PSU Rigger Device PSU Rigger Storage Small Storage Unit Hackware Hacking Suite Weapon Mining Laser Energy Gun EM Pulse Gun Ballistic Gun Light Assault Rifle Ballistic Cannon Flak Cannon Launcher Grenade Launcher Special Weapon Mining Laser Build | -11 -10 -10 -10 -9 -8 -8 ------- Run | Scr Mat Min Exi Min Mat Sto Slots Evolved 4 | . . . . . 4 . Power . | . . . . . . . Propulsion 1 | . . . . . 1 . Utility 3 | . . . . . 3 . Weapon . | . . . . . . . Parts Attached 38 | . 15 3 2 2 16 . Power 3 | . 2 . . . 1 . Engine 3 | . 2 . . . 1 . Core . | . . . . . . . Reactor . | . . . . . . . Propulsion 17 | . 7 . . 1 9 . Treads 2 | . 2 . . . . . Leg 2 | . 2 . . . . . Wheel 1 | . 1 . . . . . Hover 7 | . 2 . . 1 4 . Flight 5 | . . . . . 5 . Utility 8 | . 3 . 2 1 2 . Device 5 | . 1 . 2 1 1 . Storage 2 | . 2 . . . . . Processor . | . . . . . . . Hackware 1 | . . . . . 1 . Protection . | . . . . . . . Artifact . | . . . . . . . Weapon 10 | . 3 3 . . 4 . Energy Gun 4 | . 2 1 . . 1 . Energy Cannon . | . . . . . . . Ballistic Gun . | . . . . . . . Ballistic Cannon 2 | . . . . . 2 . Launcher 2 | . . 1 . . 1 . Special Weapon 2 | . 1 1 . . . . Impact Weapon . | . . . . . . . Slashing Weapon . | . . . . . . . Piercing Weapon . | . . . . . . . Special Melee Weapon . | . . . . . . . Unidentified Prototypes 1 | . . . 1 . . . Parts Lost 5 | . 2 . . . 3 . Power . | . . . . . . . Propulsion 2 | . 1 . . . 1 . Utility . | . . . . . . . Weapon 3 | . 1 . . . 2 . Highest Loss Streak 3 | . 1 . . . 3 . To Critical Strikes . | . . . . . . . Average Slot Usage (%) 81 | . 96 96 100 91 67 72 Engine 11 | . 14 14 14 14 8 9 Leg 2 | . 12 . . . . . Hover 11 | . 5 28 28 28 2 27 Flight 11 | . . . . . 24 . Device 12 | . 10 14 16 19 11 18 Storage 5 | . 14 14 12 . . . Hackware 2 | . . . . . 4 9 Energy Gun 1 | . 6 1 . . . . Ballistic Gun 4 | . 21 4 . . . . Launcher 7 | . . 9 14 14 7 . Special Weapon 7 | . . 9 14 14 7 . Naked Turns . | . . . . . . . Heaviest Build 18 | 13 17 15 14 10 18 18 Greatest Support 21 | 20 20 14 14 14 21 21 Greatest Overweight (x) 1 | . 1 1 . . 1 . Average Overweight (x) . | . . . . . . . Largest Inventory Capacity 10 | 8 10 8 8 5 5 5 Average Capacity 6 | 8 8 8 7 5 5 5 Most Carried 8 | 6 8 8 8 5 5 5 Average Carried 5 | 6 6 7 7 4 4 5 Final Capacity 8 | 8 8 8 5 5 5 5 Final Carried 8 | 6 7 8 5 4 5 5 Class Distribution -------------------- 47% | Mutant 35% | Sprinter 17% | Scout Dominant Class ---------------- Mutant | -10/Materials Mutant | -10/Mines Mutant | -10/Exiles Mutant | -9/Mines Sprinter | -8/Materials Scout | -8/Storage Resources | -11 -10 -10 -10 -9 -8 -8 ----------- Run | Scr Mat Min Exi Min Mat Sto Matter Collected 612 | 200 145 125 . 81 61 . Remotely . | . . . . . . . Salvage Created 213 | . 177 14 . 22 . . Parts 18 | . 11 3 . 4 . . Haulers Intercepted . | . . . . . . . Recyclers Shooed . | . . . . . . . Parts Field Recycled . | . . . . . . . Retrieved Matter . | . . . . . . . Parts Self-Destructed . | . . . . . . . Prevented . | . . . . . . . Kills | -11 -10 -10 -10 -9 -8 -8 ------- Run | Scr Mat Min Exi Min Mat Sto Combat Hostiles Destroyed 12 | . 4 3 . 3 2 . Guns 4 | . 4 . . . . . Cannons 1 | . . . . . 1 . AOE 6 | . . 3 . 3 . . Classes Destroyed 4 | . 2 1 . . 1 . Operator 1 | . 1 . . . . . Swarmer 7 | . . 3 . 3 1 . Grunt 4 | . 4 . . . . . Sentry 1 | . . . . . 1 . Best Kill Streak 4 | . 4 3 . 3 1 . Combat Bots Only 4 | . 4 3 . 3 1 . Max Kills in Single Turn 2 | . 1 2 . 1 1 . Gunslinging . | . . . . . . . Exploded 2 | . . 2 . 1 . . Melee . | . . . . . . . Uniques/NPCs Destroyed . | . . . . . . . Combat | -11 -10 -10 -10 -9 -8 -8 -------- Run | Scr Mat Min Exi Min Mat Sto Damage Taken 785 | . 467 40 . 38 240 . Core 205 | . 107 . . . 98 . Absorbed by Shields . | . . . . . . . Core Remaining (%) 78 | 100 . . . 57 . . Volleys Fired 97 | . 26 4 . 7 60 . Largest 2 | . 2 1 . 1 1 . Hottest 100 | . 85 30 . 100 100 . Shots Fired 123 | . 52 4 . 7 60 . Gun 52 | . 52 . . . . . Cannon 5 | . . . . . 5 . Launcher 8 | . . 4 . 4 . . Special 58 | . . . . 3 55 . Kinetic 50 | . 45 . . . 5 . Thermal 59 | . 1 . . 3 55 . Explosive 8 | . . 4 . 4 . . Electromagnetic 6 | . 6 . . . . . Robot Hit Streak 8 | . 8 . . . 4 . Robot Miss Streak 5 | . 5 . . . 4 . Penetration Max . | . . . . . . . Secondary Targets 1 | . 1 . . . . . Max Gunslinging Chain 1 | . 1 . . . . . Shots Hit Robots 43 | . 37 . . . 6 . Core Hits 21 | . 13 2 . 4 2 . Critical Kills . | . . . . . . . Critical Parts Destroyed 1 | . 1 . . . . . Critical Strikes 1 | . 1 . . . . . Destroy 1 | . 1 . . . . . Melee Attacks . | . . . . . . . Impact . | . . . . . . . Slashing . | . . . . . . . Piercing . | . . . . . . . Sneak Attacks . | . . . . . . . Combat Hostiles . | . . . . . . . Follow-up Attacks . | . . . . . . . Damage Inflicted 809 | . 482 174 . 81 72 . Guns 393 | . 393 . . . . . Cannons 48 | . . . . . 48 . Explosions 332 | . 88 163 . 81 . . Melee . | . . . . . . . Ramming 12 | . 1 11 . . . . Kinetic 372 | . 324 . . . 48 . Thermal 115 | . 91 . . . 24 . Explosive 244 | . . 163 . 81 . . Electromagnetic 66 | . 66 . . . . . Impact . | . . . . . . . Slashing . | . . . . . . . Piercing . | . . . . . . . Highest Corruption 1 | . . 1 1 1 . . Average Corruption 1 | . . 1 1 1 . . Corruption Purged . | . . . . . . . Corruption Blocked . | . . . . . . . Effects 5 | . . 3 1 1 . . Message Errors 2 | . . 1 . 1 . . Matter Fused 1 | . . . 1 . . . Heat Flow Errors 1 | . . 1 . . . . Data Loss (minor) 1 | . . 1 . . . . Overload Shots . | . . . . . . . Overflow Damage 62 | . 30 32 . . . . Projectiles . | . . . . . . . Explosions 62 | . 30 32 . . . . Melee . | . . . . . . . Knockbacks 4 | . . . . . 4 . Impact . | . . . . . . . Kinetic 4 | . . . . . 4 . Secondary . | . . . . . . . Self-Inflicted Damage 198 | . 170 4 . 24 . . Shots 3 | . 2 . . 1 . . Rammed 4 | . . 3 . 1 . . Targets Rammed 5 | . 1 3 . 1 . . Kicked 1 | . 1 . . . . . Crushed . | . . . . . . . Highest Temperature 224 | . 67 224 . 56 62 . Average Temperature 22 | . 19 116 . 29 15 . Received Heat Transfer 219 | . 174 . . . 45 . Siege Activations . | . . . . . . . Robots Corrupted . | . . . . . . . Combat Hostiles . | . . . . . . . Parts Fried . | . . . . . . . Impact Corruptions . | . . . . . . . Robots Melted . | . . . . . . . Combat Hostiles . | . . . . . . . Parts Melted . | . . . . . . . Heat Transferred 105 | . 55 . . . 50 . Parts Sabotaged . | . . . . . . . Parts Stolen . | . . . . . . . Parts Stripped . | . . . . . . . Power Chain Reactions . | . . . . . . . Missiles Intercepted . | . . . . . . . Alert | -11 -10 -10 -10 -9 -8 -8 ------- Run | Scr Mat Min Exi Min Mat Sto Peak Influence 289 | . 289 185 . 142 134 35 Initial 55 | . . 40 . . 55 5 Average 83 | . 184 79 . 102 48 30 Maximum Alert Level 1 | . 1 . . . . . Low Security (%) 92 | 100 61 100 . 100 100 100 Level 1 7 | . 38 . . . . . Level 2 . | . . . . . . . Level 3 . | . . . . . . . Level 4 . | . . . . . . . Level 5 . | . . . . . . . High Security . | . . . . . . . Max Security . | . . . . . . . Squads Dispatched 5 | . 1 . . . 3 1 Investigation 2 | . . . . . 2 . Extermination . | . . . . . . . Reinforcement 3 | . 1 . . . 1 1 Assault . | . . . . . . . Garrison . | . . . . . . . Intercept . | . . . . . . . Searches Triggered . | . . . . . . . Construction Impeded . | . . . . . . . Haulers Reinforced . | . . . . . . . Active Scanning Responses . | . . . . . . . Cargo Convoy Interrupts . | . . . . . . . Stealth | -11 -10 -10 -10 -9 -8 -8 --------- Run | Scr Mat Min Exi Min Mat Sto Distress Signals 3 | . . . . . 3 . Communications Jammed . | . . . . . . . Distress Signals . | . . . . . . . Times Spotted 28 | . 8 3 . 3 13 1 Peak Tracking Total 5 | . 5 3 . 3 4 . Tactical Retreats 4 | . . . . . 4 . Traps | -11 -10 -10 -10 -9 -8 -8 ------- Run | Scr Mat Min Exi Min Mat Sto Traps Triggered . | . . . . . . . Indirectly . | . . . . . . . Trap Hack Attempts . | . . . . . . . Triggered . | . . . . . . . Disarmed . | . . . . . . . Reprogrammed . | . . . . . . . Reused . | . . . . . . . Traps Extracted . | . . . . . . . Installed . | . . . . . . . Triggered . | . . . . . . . Most Traps Carried 2 | . . 2 2 . . . Power Sources Rigged 1 | . . . . . 1 . Exploded 1 | . . . . . 1 . Machines | -11 -10 -10 -10 -9 -8 -8 ---------- Run | Scr Mat Min Exi Min Mat Sto Machines Disabled 4 | . 4 . . . . . Max in Single Turn 4 | . 4 . . . . . Machines Sabotaged . | . . . . . . . Garrisons Compromised . | . . . . . . . Overloaded Fab Kills . | . . . . . . . Hacking | -11 -10 -10 -10 -9 -8 -8 --------- Run | Scr Mat Min Exi Min Mat Sto Machines Accessed 6 | . 2 . . . 4 . Terminals 4 | . . . . . 4 . Fabricators . | . . . . . . . Repair Stations . | . . . . . . . Recycling Units 2 | . 2 . . . . . Scanalyzers . | . . . . . . . Garrison Access . | . . . . . . . Total Hacks 12 | . 2 . . . 10 . Successful 6 | . 2 . . . 4 . Failed 6 | . . . . . 6 . Catastrophic 2 | . . . . . 2 . Database Lockouts . | . . . . . . . Manual 10 | . . . 1 . 7 2 Terminals 10 | . . . . . 10 . Fabricators . | . . . . . . . Repair Stations . | . . . . . . . Recycling Units 2 | . 2 . . . . . Scanalyzers . | . . . . . . . Garrison Access . | . . . . . . . Terminal Hacks 4 | . . . . . 4 . Record 2 | . . . . . 2 . Hauler Manifests 1 | . . . . . 1 . Zone Layout 1 | . . . . . 1 . Fabricator Hacks . | . . . . . . . Repair Station Hacks . | . . . . . . . Recycling Unit Hacks 2 | . 2 . . . . . Report Inventory 2 | . 2 . . . . . Scanalyzer . | . . . . . . . Garrison Access Hacks . | . . . . . . . Unauthorized Hacks . | . . . . . . . Terminals . | . . . . . . . Fabricators . | . . . . . . . Repair Stations . | . . . . . . . Recycling Units . | . . . . . . . Scanalyzers . | . . . . . . . Garrison Access . | . . . . . . . Data Cores Recovered . | . . . . . . . Used . | . . . . . . . Hacking Detections 5 | . 1 . . . 4 . Full Trace Events 1 | . . . . . 1 . Feedback Events . | . . . . . . . Feedback Blocked . | . . . . . . . Robot Schematics Acquired . | . . . . . . . Robots Built . | . . . . . . . Authchips . | . . . . . . . Time . | . . . . . . . Total Robot Build Rating . | . . . . . . . Part Schematics Acquired . | . . . . . . . Parts Built . | . . . . . . . Authchips . | . . . . . . . Time . | . . . . . . . Total Part Build Rating . | . . . . . . . Parts Repaired . | . . . . . . . Time . | . . . . . . . Parts Recycled . | . . . . . . . Recycled Matter . | . . . . . . . Retrieved Matter . | . . . . . . . Retrieved Components . | . . . . . . . Parts Scanalyzed . | . . . . . . . Part Schematics Acquired . | . . . . . . . Parts Damaged . | . . . . . . . Bothacking | -11 -10 -10 -10 -9 -8 -8 ------------ Run | Scr Mat Min Exi Min Mat Sto Used RIF Installer . | . . . . . . . Robots Hacked . | . . . . . . . Non-combat . | . . . . . . . Combat . | . . . . . . . Robot Hacks Applied . | . . . . . . . Relay Couplers Released . | . . . . . . . Fabnet Peak Effective % . | . . . . . . . Robots Rewired . | . . . . . . . Allies Hacked . | . . . . . . . Hacks Repelled . | . . . . . . . Allies | -11 -10 -10 -10 -9 -8 -8 -------- Run | Scr Mat Min Exi Min Mat Sto Total Allies 2 | . . . . 2 . . Largest Group 2 | . . . . 2 1 . Highest-Rated Group 40 | . . . . 40 31 . Highest-Rated Ally 31 | . . . . 31 31 . Total Orders . | . . . . . . . Ally Attacks 8 | . . . . . 8 . Total Damage 63 | . . . . . 63 . Kills . | . . . . . . . Allies Corrupted . | . . . . . . . Allies Melted . | . . . . . . . Intel | -11 -10 -10 -10 -9 -8 -8 ------- Run | Scr Mat Min Exi Min Mat Sto Robot Analysis Total . | . . . . . . . Derelict Logs Recovered 2 | . . 1 . 1 . . Drone Launches . | . . . . . . . Drone Recoveries . | . . . . . . . Exploration | -11 -10 -10 -10 -9 -8 -8 ------------- Run | Scr Mat Min Exi Min Mat Sto Turns Passed 2514 | 5 461 473 143 148 1215 69 Spaces Moved 2847 | 5 327 666 243 185 1340 81 Core . | . . . . . . . Treads . | . . . . . . . Legs 98 | 5 93 . . . . . Wheels 124 | . 124 . . . . . Hover 1487 | . 110 666 243 185 202 81 Flight 1138 | . . . . . 1138 . Fastest Speed 30 | 120 56 56 56 56 30 52 Average Speed 50 | 120 92 57 56 56 34 52 Slowest Speed 120 | 120 120 116 56 56 96 52 Overloaded Moves . | . . . . . . . Propulsion Burnouts . | . . . . . . . Robots Hopped 10 | . . . . . 10 . Cave-ins Triggered . | . . . . . . . Exploration Rate (%) 46 | 2 61 93 63 43 43 17 Regions Visited 6 Branch Regions 4 Pre-discovered Areas 1 | . . 1 . . . . Known Exits Taken . | . . . . . . . Unknown Exits Taken 6 | 1 1 1 1 1 1 . Scrap Searched 2 | . . 2 . . . . Spaces Dug 53 | . . . . 3 50 . Terrain Destroyed 139 | . 40 24 . 23 52 . Melee . | . . . . . . . Projectile 55 | . . . . 3 52 . AOE 84 | . 40 24 . 20 . . Terrain Rammed . | . . . . . . . Walls Destroyed . | . . . . . . . Machines Disabled . | . . . . . . . Actions | -11 -10 -10 -10 -9 -8 -8 --------- Run | Scr Mat Min Exi Min Mat Sto Total 3674 | 4 437 751 250 216 1909 107 Wait 639 | . 41 68 . 16 488 26 Move 2822 | 4 326 665 242 184 1320 81 Hop 9 | . . . . . 9 . Pick Up 32 | . 16 4 1 2 9 . Fast Attach 3 | . . . 1 . 2 . Attach 10 | . 3 1 . . 6 . Detach 2 | . . 1 . . 1 . Swap 25 | . 12 2 1 2 8 . Drop 29 | . 12 3 5 4 5 . Fire 97 | . 26 4 . 7 60 . Melee . | . . . . . . . Ram 4 | . . 3 . 1 . . Kick 1 | . 1 . . . . . Crush . | . . . . . . . Escape Stasis . | . . . . . . . Rewire . | . . . . . . . Trap 1 | . . . . . 1 . Miscellaneous . | . . . . . . . Route ------- -11/Scrapyard -10/Materials (discovered 2 exits: [*Mat] / [*Min]) -10/Mines (discovered 2 exits: [*Mat] / *Exi) -10/Exiles -9/Mines (discovered 2 exits: *Mat x2) -8/Materials (discovered 2 exits: [*Fac] / *Sto) -8/Storage History --------- Turn | Location | Event 1 | -11/Scrapyard | Discovered new exit (range 3) 6 | -11/Scrapyard | Entered Materials 317 | -10/Materials | Build established: Mutant 354 | -10/Materials | Discovered new exit (range 16) 449 | -10/Materials | Discovered new exit (range 8) 467 | -10/Materials | Entered Mines 471 | -10/Mines | Discovered new exit (range 14) 482 | -10/Mines | YI-UF0 nonchalantly dropped a Grenade Launcher on the ground 552 | -10/Mines | Learned Materials garrison access intel 874 | -10/Mines | Deemed a non-threat by the Exiles lab entrance 875 | -10/Mines | Discovered new exit (range 5) 889 | -10/Mines | Found a hidden stash of uninstalled traps 912 | -10/Mines | Learned location of Storage (-8) 940 | -10/Mines | Entered Exiles 954 | -10/Exiles | Met 8R-AWN 963 | -10/Exiles | Met EX-HEX 979 | -10/Exiles | Met EX-BIN 986 | -10/Exiles | Aligned with FarCom system 987 | -10/Exiles | Given EX-Vault access code 1001 | -10/Exiles | Opened EX-Vault 1004 | -10/Exiles | Found Prototype Device 1005 | -10/Exiles | Identified PSU Rigger 1018 | -10/Exiles | Warned to stay clear of 0b10 Research branches 1036 | -10/Exiles | Met EX-DEC 1078 | -10/Exiles | Discovered new exit (range 10) 1083 | -10/Exiles | Left Exiles lab with PSU Rigger 1083 | -10/Exiles | Entered Mines 1200 | -9/Mines | Discovered new exit (range 8) 1215 | -9/Mines | Discovered new exit (range 9) 1231 | -9/Mines | Entered Materials 1231 | -8/Materials | Accompanied by 1 ally 1231 | -8/Materials | Evolved 4 slots: Propulsion x1, Utility x3 1232 | -8/Materials | Loaded intel: 1 garrison access location 1236 | -8/Materials | Led the pair of lost Derelicts to an unsafe place 1552 | -8/Materials | Build established: Sprinter 2304 | -8/Materials | Lost 3 parts (1n2w) 2320 | -8/Materials | Discovered new exit (range 10) 2335 | -8/Materials | Discovered new exit (range 15) 2446 | -8/Materials | Entered Storage 2515 | -8/Storage | Self-destructed Last Messages --------------- A-02 Transporter 5x Aerolev Unit (1 escort) A-02 Transporter 2x Autogun 4x Lgt. Nuclear Core A-02 Transporter 4x EMP Blaster 1x Utility Shielding 1x Minigun LOCATION=UNKNOWN GOAL=ESCAPE 02446_ Receiving FarCom transmissions... 02461_ O-16 Technician: "IFF HANDSHAKE FAILED. SECURING TERMINAL." 02461_ O-16 Technician uses terminal to summon reinforcements. 02461_ ALERT: Hostiles spotted, dispatching reinforcements to Terminal S013. 02461_ O-16 Technician locks terminal. 02468_ K-01 Serf cleans the Transfer Shaft. 02477_ Connecting with Door Terminal... 02477_ Current location identified: Storage Map ----- +----------------------------------------------------+ | | | | | | | | | | | | | ????????????????????????###????? | | ?????????????????########T###### | | ????????? # | | ????????? + | | ????????????"" # | | ?????????????????# #+#+###### ## | | ?????????????????# # ??????# #? | | ?????????o???????# # ??????# #? | | ?????????????????# # ??????# #? | | ?????????????????# # ??????# #? | | ???????????"###### # ""?????#+#? | | ???????????" # ""????????? | | ???????????" # ""????????? | | ???????????"#T### # ?????????? | | ??????########### ###?????????? | | ??????# + #???????????? | | ??????# """ # #???????????? | | ??????# "????" # #???????????? | | ??????# "????" # #???????????? | | ??????#@"????" # g#???????????? | | ??????# "?"""" # #???????????? | | ??????# """ + ???????????? | | ??????# # ???????????? | | ??????############ ????g??????? | | ??????????????????g ???????????? | | ?????????????????? ??????????? | | ?????????????????? ??????????? | | ??????????????????+# ??????????? | | ???????????????????? ??????????? | | ???????????????????????????????? | | ???????????????????????????????? | | ???????????????????????????????? | | ??????????????????o????????????? | | ???????????????????????????????? | | ???????????????????????????????? | | ???????????????????????????????? | | ???????????????????????????????? | | ???????????????????????????????? | | ???????????????????????????????? | | ???????????????????????????????? | | ???????????????????????????????? | | ???????????????????????????????? | | ???????????????????????????????? | | ???????????????????????????????? | +----------------------------------------------------+ Best States ------------- Heat Dissipation 31 Energy Generation 14 Energy Capacity 275 Matter Stores 300 Matter Capacity 300 Sight Range 16 Robot Scan Range 15 Terrain Scan Density 10 Evasion (%) 64 Recoil Reduction 1 Offensive Hacking 10 Item Schematics ----------------- None Robot Schematics ------------------ None Fabricated ------------ Nothing Alien Tech Used ----------------- None Achievements -------------- None Challenges ------------ None Game ------ Seed StorageIonScrap Manual? 0 Play Time 00:39:26 Cumulative 12.9 hours Start 2022.06.13 @ 14:08:04 End 2022.06.13 @ 14:48:24 Sessions 1 Manual Loads 0 Difficulty Rogue Special Mode None Game No. 18 Rogue 18 Adventurer 0 Explorer 0 Win Type - Total 0 Types 0/0/0/0/0/0/0/0/0 Lore% 4 Gallery% 16 Achievement% 16 Wizard Run 0 Options --------- ASCII 0 Keyboard 0 Movement Numpad Keybinds 0 Fullscreen 1 Font 12/Smallcaps Map View 83x54 Tactical HUD 1 Map Filters NONE Filters NONE Steam 1 RUN: 6bfd60ca-5fa0-49be-b7b7-e2bc6be247ec